bitfinex-derivatives/quotes_ETHF0:USTF0_20250919
["timestamp","ask_amount","ask_price","bid_price","bid_amount"]
[1758305171620,0.566,4459.3,4459.2,0.72096]
[1758305171915,1.03535112,4459.3,4459.2,0.72096]
[1758305172111,0.1499,4459.2,4459.1,0.40346]
[1758305172312,0.566,4459.1,4459.0,0.40348]
[1758305172617,0.566,4458.5,4458.4,3.92883]
[1758305172912,0.65845112,4458.5,4458.4,4.13503]
[1758305173216,0.65845112,4458.5,4458.4,4.35063]
[1758305173419,0.4161,4458.5,4458.4,4.35063]
[1758305174617,0.65841165,4458.5,4458.4,4.35063]
[1758305176918,0.44381165,4458.5,4458.4,4.35063]
[1758305178217,0.24231165,4458.5,4458.4,4.35063]
[1758305182314,0.44381165,4458.5,4458.4,4.35063]
[1758305183122,0.44381165,4458.5,4458.4,1.14283]
[1758305184816,4.80831165,4458.5,4458.4,0.72103]
[1758305185121,5.19928036,4458.5,4458.4,0.40353]
[1758305185510,5.34918036,4458.5,4458.4,0.40353]
[1758305186823,5.34918036,4458.5,4458.4,0.72103]
[1758305187621,8.55698036,4458.5,4458.4,0.40353]
[1758305187814,0.566,4458.4,4458.3,0.40354]
[1758305188021,1.34918036,4458.4,4458.3,0.40354]
[1758305189018,1.34918036,4458.4,4458.3,0.72474]
[1758305189321,1.34918036,4458.4,4458.3,0.40354]
[1758305190623,0.5797,4458.2,4458.1,0.3212]
[1758305190825,1.58988036,4458.2,4458.1,0.3212]
[1758305191418,0.4299,4457.9,4457.8,0.93389]
[1758305191627,4.10701165,4457.9,4457.8,0.93389]
[1758305192013,4.12124404,4457.9,4457.8,0.93389]
[1758305192616,3.69134404,4457.9,4457.8,1.14139]
[1758305192815,3.90724404,4457.9,4457.8,1.14139]
[1758305194126,3.69134404,4457.9,4457.8,1.14139]
[1758305194326,4.12124404,4457.9,4457.8,0.7378]
[1758305194624,4.12124404,4457.9,4457.8,0.3212]
[1758305194625,4.27104404,4457.9,4457.8,0.3212]
[1758305194826,4.27104404,4457.9,4457.8,0.72479]
[1758305195024,4.27104404,4457.9,4457.5,0.1211]
[1758305195320,4.27104404,4457.9,4456.5,0.1211]
[1758305195321,0.5797,4456.6,4456.5,0.4423]
[1758305195522,4.02224404,4456.6,4456.5,0.8589]
[1758305196127,4.12124404,4456.6,4456.5,0.8589]
[1758305197121,4.12124404,4456.6,4456.5,0.6514]
[1758305197322,3.90724404,4456.6,4456.5,0.1264]
[1758305197522,4.12124404,4456.6,4456.5,0.6567]
[1758305197920,4.12124404,4456.6,4456.5,0.8642]
[1758305198321,4.04404404,4456.6,4456.5,0.8642]
[1758305198521,4.12124404,4456.6,4456.5,0.8642]
[1758305198721,3.46434404,4456.6,4456.5,0.8642]
[1758305198917,3.69134404,4456.6,4456.5,0.8642]
[1758305199321,3.46434404,4456.6,4456.5,0.8642]
[1758305199523,0.227,4456.9,4456.8,0.4166]
[1758305199725,0.227,4456.9,4456.8,0.7378]
[1758305199925,0.483097,4456.9,4456.8,1.14147]
[1758305200125,0.912997,4456.9,4456.8,1.14148]
[1758305200323,0.685997,4456.9,4456.8,1.14148]
[1758305200522,0.912997,4456.9,4456.8,1.14148]
[1758305200722,0.483097,4456.9,4456.8,1.14148]
[1758305200923,0.256097,4456.9,4456.8,1.14148]
[1758305201232,3.2078,4457.6,4457.5,0.8642]
[1758305201423,3.69102809,4457.6,4457.5,0.8642]
[1758305201728,3.46402809,4457.6,4457.5,0.8642]
[1758305201929,3.69102809,4457.6,4457.5,0.8642]
[1758305202323,3.69102809,4457.6,4457.5,1.26782]
[1758305202923,0.25622809,4457.6,4457.5,1.26782]
[1758305203130,0.48322809,4457.6,4457.5,1.26782]
[1758305203525,0.69912809,4457.6,4457.5,1.26782]
[1758305203927,4.12092809,4457.6,4457.5,1.26782]
[1758305204127,4.27072809,4457.6,4457.5,0.4476]
[1758305204327,4.12092809,4457.6,4457.0,0.1264]
[1758305204534,0.4299,4457.2,4457.1,0.93395]
[1758305204730,0.91312809,4457.2,4457.1,1.14145]
[1758305205430,1.06292809,4457.2,4457.1,0.72485]
[1758305205928,1.06292809,4457.2,4457.1,0.40365]
[1758305206333,1.06292809,4457.2,4457.1,0.72485]
[1758305206933,0.91312809,4457.2,4457.1,1.14145]
[1758305207136,0.91412809,4457.2,4457.1,1.14145]
[1758305208932,0.68612809,4457.2,4457.1,1.14145]
[1758305209133,0.91412809,4457.2,4457.1,1.14145]
[1758305209335,0.70012809,4457.2,4457.1,1.14145]
[1758305210239,0.25622809,4457.2,4457.1,1.14145]
[1758305210439,0.228,4457.3,4457.2,0.40364]
[1758305210738,0.228,4457.3,4457.2,1.14144]
[1758305210935,3.2078,4457.6,4457.5,0.40362]
[1758305211138,3.2078,4457.6,4457.5,1.26782]
[1758305211139,0.48443378,4457.6,4457.5,1.26782]
[1758305211542,0.70033378,4457.6,4457.5,1.26782]
[1758305212134,0.25643378,4457.6,4457.5,1.26782]
[1758305212335,0.47233378,4457.6,4457.5,1.26782]
[1758305212634,0.70033378,4457.6,4457.5,1.26782]
[1758305212836,0.91433378,4457.6,4457.5,1.26782]
[1758305213036,1.61965135,4457.6,4457.5,0.40362]
[1758305214046,1.46985135,4457.6,4457.5,1.06032]
[1758305214539,1.61965135,4457.6,4457.5,1.06032]
[1758305215038,1.24185135,4457.6,4457.5,1.26782]
[1758305215243,1.03995135,4457.6,4457.5,1.26782]
[1758305215637,1.46985135,4457.6,4457.5,1.26782]
[1758305216040,1.47020937,4457.6,4457.5,1.26782]
[1758305217443,1.62000937,4457.6,4457.5,1.06032]
[1758305217947,1.02820937,4457.6,4457.5,1.26782]
[1758305218143,1.04030937,4457.6,4457.5,1.26782]
[1758305220250,0.81230937,4457.6,4457.5,1.26782]
[1758305220450,1.04030937,4457.6,4457.5,1.26782]
[1758305221255,0.81230937,4457.6,4457.5,1.26782]
[1758305221859,1.3825,4457.8,4457.7,1.1093]
[1758305223161,1.3825,4457.8,4457.7,8.3171]
[1758305224159,2.1601,4457.8,4457.7,0.7028]
[1758305224558,2.0087,4457.8,4457.7,0.8989]
[1758305224952,2.1601,4457.8,4457.7,0.8989]
[1758305225151,1.6105,4457.8,4457.7,1.1093]
[1758305225755,1.3825,4457.8,4457.7,1.1093]
[1758305227460,0.9326,4457.8,4457.7,1.1093]
[1758305230760,3.2078,4458.6,4457.7,1.1093]
[1758305230761,3.606,4458.6,4458.5,1.02113]
[1758305231064,4.38890885,4458.6,4458.5,1.02113]
[1758305232457,4.54030885,4458.6,4458.5,1.02113]
[1758305233362,4.54030885,4458.6,4458.5,0.82503]
[1758305233564,4.54030885,4458.6,4458.5,0.70273]
[1758305233766,4.78792256,4458.6,4458.5,0.40353]
[1758305234466,8.78792256,4458.6,4458.5,0.40353]
[1758305235067,8.78783277,4458.6,4458.5,0.40353]
[1758305235659,8.63643277,4458.6,4458.3,0.40354]
[1758305235865,0.3982,4458.4,4458.3,0.40354]
[1758305236066,1.35303277,4458.4,4458.3,0.40354]
[1758305238457,1.80373277,4458.4,4458.3,0.40354]
[1758305239770,0.1954,4458.2,4458.1,0.40356]
[1758305240068,0.5496,4458.1,4458.0,0.40357]
[1758305240367,0.2028,4457.6,4457.5,0.53002]
[1758305240568,4.54030885,4457.6,4457.5,0.82922]
[1758305240767,4.78783277,4457.6,4457.5,0.70282]
[1758305240968,4.78783277,4457.6,4457.5,0.40362]
[1758305242674,0.3982,4457.2,4457.1,0.89895]
[1758305242972,1.42863277,4457.2,4457.1,1.10935]
[1758305243163,1.42863277,4457.2,4457.1,0.4953]
[1758305243368,1.42863277,4457.2,4456.8,0.40368]
[1758305243567,0.3982,4457.0,4456.9,0.89897]
[1758305243768,1.23423277,4457.0,4456.9,1.10937]
[1758305244469,1.23423277,4457.0,4456.9,0.7057]
[1758305244470,0.87372392,4457.0,4456.9,0.7057]
[1758305244670,1.02512392,4457.0,4456.9,0.4953]
[1758305244868,1.02512392,4457.0,4456.9,0.2992]
[1758305245073,1.5805638,4457.0,4456.9,0.2992]
[1758305247176,1.5805638,4457.0,4456.9,0.89897]
[1758305247377,1.4291638,4457.0,4456.9,0.89897]
[1758305250177,1.4291638,4457.0,4456.9,0.4953]
[1758305250478,1.5792638,4457.0,4456.9,0.4953]
[1758305250677,1.5792638,4457.0,4456.9,0.2992]
[1758305250975,1.5792638,4457.0,4456.9,0.70287]
[1758305251176,1.02382392,4457.0,4456.9,0.70287]
[1758305251769,1.57799665,4457.0,4456.9,0.70287]
[1758305252677,0.67832392,4457.0,4456.9,1.11157]
[1758305252978,0.24752392,4457.0,4456.9,5.11157]
[1758305253176,3.2078,4457.8,4457.7,0.4087]
[1758305253371,3.98998732,4457.8,4457.7,0.7236]
[1758305253676,4.18488732,4457.8,4457.7,0.7236]
[1758305254579,4.38408732,4457.8,4457.7,0.7236]
[1758305255375,4.53418732,4457.8,4457.7,0.7236]
[1758305255676,4.53418732,4457.8,4457.7,0.5227]
[1758305256773,4.38408732,4457.8,4457.7,0.5227]
[1758305257078,4.53418732,4457.8,4457.7,0.3149]
[1758305257772,0.1501,4457.7,4457.0,0.4374]
[1758305257972,3.6019,4457.1,4457.0,0.8461]
[1758305258179,3.8309,4457.1,4457.0,0.8461]
[1758305260879,0.4507,4458.4,4457.3,1.12723]
[1758305260880,0.1949,4457.4,4457.3,1.12723]
[1758305261082,0.4239,4457.4,4457.3,1.12723]
[1758305261284,0.97756958,4457.4,4457.3,1.12723]
[1758305261982,1.17676958,4457.4,4457.3,1.12723]
[1758305263384,1.17576958,4457.4,4457.3,1.12723]
[1758305265086,1.42221888,4457.4,4457.3,1.12723]
[1758305266081,1.42221888,4457.4,4457.3,0.7236]
[1758305266286,1.42221888,4457.4,4457.3,1.12724]
[1758305268487,1.22301888,4457.4,4457.3,1.12724]
[1758305268690,1.02811888,4457.4,4457.3,1.12724]
[1758305269591,0.80011888,4457.4,4457.3,1.12724]
[1758305269789,1.02811888,4457.4,4457.3,1.12724]
[1758305270190,0.80011888,4457.4,4457.3,1.12724]
[1758305270389,1.02811888,4457.4,4457.3,1.12724]
[1758305271101,1.22301888,4457.4,4457.3,1.12724]
[1758305271685,0.80011888,4457.4,4457.3,1.12724]
[1758305271989,1.02811888,4457.4,4457.3,1.12724]
[1758305272392,1.22301888,4457.4,4457.3,1.12724]
[1758305274499,0.80011888,4457.4,4457.3,1.12724]
[1758305274696,1.02811888,4457.4,4457.3,1.12724]
[1758305274895,0.80011888,4457.4,4457.3,1.12724]
[1758305275095,1.02811888,4457.4,4457.3,1.12724]
[1758305275899,1.42221888,4457.4,4457.3,1.12724]
[1758305276199,1.02811888,4457.4,4457.3,1.12724]
[1758305276398,1.22301888,4457.4,4457.3,1.12724]
[1758305276599,1.42221888,4457.4,4457.3,1.12723]
[1758305276799,1.22301888,4457.4,4457.3,1.12723]
[1758305277898,1.67491888,4457.4,4457.3,1.12723]
[1758305278600,1.87411888,4457.4,4457.3,0.7236]
[1758305279500,1.87411888,4457.4,4457.3,1.12723]
[1758305280195,2.02401888,4457.4,4457.3,1.12723]
[1758305281200,1.44691888,4457.4,4457.3,1.12723]
[1758305281399,1.87721888,4457.4,4457.3,1.12723]
[1758305281800,1.67491888,4457.4,4457.3,1.12723]
[1758305282495,1.25201888,4457.4,4457.3,1.12723]
[1758305282695,1.48001888,4457.4,4457.3,1.12723]
[1758305283403,1.89161888,4457.4,4457.3,1.12723]
[1758305283796,2.04151888,4457.4,4457.3,0.3149]
[1758305284399,1.89161888,4457.4,4457.2,0.69644]
[1758305284601,1.36161888,4457.3,4457.2,0.69644]
[1758305288802,1.36161888,4457.3,4457.2,0.2928]
[1758305289705,1.36161888,4457.3,4457.2,0.69644]
[1758305290806,1.02811888,4457.3,4457.2,1.09804]
[1758305292008,1.23741888,4457.3,4457.2,1.09804]
[1758305292307,1.43971888,4457.3,4457.2,1.09804]
[1758305293103,1.58961888,4457.3,4457.2,0.4931]
[1758305293297,0.5615,4457.2,4457.1,0.0224]
[1758305293502,4.56941888,4457.2,4457.1,0.0224]
[1758305293701,0.1499,4457.1,4456.9,0.2928]
[1758305293905,1.58961888,4457.0,4456.9,0.2928]
[1758305294204,1.58961888,4457.0,4456.9,0.4931]
[1758305294400,1.43971888,4457.0,4456.9,0.89677]
[1758305294606,1.43971888,4457.0,4456.9,1.09807]
[1758305294806,1.58961888,4457.0,4456.9,1.09807]
[1758305295402,1.58961888,4457.0,4456.9,0.6944]
[1758305295803,1.58961888,4457.0,4456.9,1.09807]
[1758305296604,1.58961888,4457.0,4456.9,0.6944]
[1758305297012,1.58961888,4457.0,4456.9,1.09807]
[1758305297309,1.43971888,4457.0,4456.9,1.09807]
[1758305298110,1.23741888,4457.0,4456.9,1.09807]
[1758305300911,1.43971888,4457.0,4456.9,1.09807]
[1758305301606,1.25261888,4457.0,4456.9,1.09807]
[1758305301812,1.48061888,4457.0,4456.9,1.09807]
[1758305302412,1.25261888,4457.0,4456.9,1.09807]
[1758305302807,0.6989493,4457.0,4456.9,5.09807]
[1758305312425,0.6989493,4457.0,4456.9,1.09807]
[1758305312620,3.4061,4458.2,4458.1,0.2061]
[1758305312825,3.96135916,4458.2,4458.1,1.10796]
[1758305313014,4.16645916,4458.2,4458.1,1.10796]
[1758305314325,4.31635916,4458.2,4458.1,0.90626]
[1758305314526,4.16645916,4458.2,4458.1,0.90626]
[1758305315418,4.16645916,4458.2,4458.1,1.10796]
[1758305315619,3.76305916,4458.2,4458.1,1.10796]
[1758305315919,3.99005916,4458.2,4458.1,1.10796]
[1758305316925,4.54335916,4458.2,4458.1,0.90626]
[1758305317123,4.39345916,4458.2,4458.1,1.10796]
[1758305319228,4.54335916,4458.2,4458.1,0.90626]
[1758305319525,4.54335916,4458.2,4458.1,0.70016]
[1758305319916,4.31635916,4458.2,4458.1,0.70016]
[1758305320116,4.54335916,4458.2,4458.1,0.70016]
[1758305321225,4.39345916,4458.2,4458.1,0.90626]
[1758305321525,4.39345916,4458.2,4458.1,1.10796]
[1758305322626,4.54335916,4458.2,4458.1,0.70016]
[1758305323128,4.54255154,4458.2,4458.1,0.70016]
[1758305323821,4.54255154,4458.2,4458.1,0.90626]
[1758305324522,4.16565154,4458.2,4458.1,0.90626]
[1758305324727,4.63310532,4458.2,4458.1,0.90626]
[1758305326024,4.63310532,4458.2,4458.1,0.5027]
[1758305326229,4.78300532,4458.2,4458.1,0.5027]
[1758305326527,4.78300532,4458.2,4458.1,0.70016]
[1758305326729,4.78300532,4458.2,4458.1,0.2966]
[1758305327029,4.78300532,4458.2,4458.1,0.70016]
[1758305327826,4.78300532,4458.2,4458.1,0.90626]
[1758305328129,4.63310532,4458.2,4458.1,1.10796]
[1758305328323,4.42800532,4458.2,4458.1,1.10796]
[1758305329332,4.63310532,4458.2,4458.1,1.10796]
[1758305329529,4.63310532,4458.2,4458.1,0.7044]
[1758305329732,4.78300532,4458.2,4458.1,0.7044]
[1758305329934,0.5533,4458.0,4457.9,0.319]
[1758305330133,1.02075378,4458.0,4457.9,0.319]
[1758305330433,1.42530532,4458.0,4457.8,0.70019]
[1758305330627,1.34893181,4457.9,4457.8,0.70019]
[1758305333133,1.34893181,4457.9,4457.8,0.2966]
[1758305333328,0.2051,4457.2,4457.1,0.2966]
[1758305333533,1.42603181,4457.2,4456.9,0.70026]
[1758305333734,0.5533,4457.0,4456.9,0.70026]
[1758305334037,1.57593181,4457.0,4456.9,0.70026]
[1758305334934,1.42603181,4457.0,4456.9,0.90636]
[1758305335128,1.42603181,4457.0,4456.9,1.10806]
[1758305335735,1.22093181,4457.0,4456.9,1.10806]
[1758305336334,1.42603181,4457.0,4456.9,1.10806]
[1758305337738,1.57593181,4457.0,4456.9,0.5027]
[1758305337936,1.57593181,4457.0,4456.9,0.2966]
[1758305338533,1.57593181,4457.0,4456.9,0.70027]
[1758305338927,1.33547803,4457.0,4456.9,0.2966]
[1758305339141,1.5778609,4457.0,4456.9,0.70027]
[1758305339339,1.5778609,4457.0,4456.9,0.2966]
[1758305339835,1.6546609,4457.0,4456.7,0.0224]
[1758305340038,3.7604,4456.8,4456.7,0.94728]
[1758305340239,3.7604,4456.8,4456.7,0.73328]
[1758305340240,4.5579609,4456.8,4456.7,0.73328]
[1758305340434,4.6349609,4456.8,4456.7,0.92488]
[1758305341035,4.0053609,4456.8,4456.7,1.12018]
[1758305341238,4.6349609,4456.8,4456.7,1.12018]
[1758305341738,4.63485125,4456.8,4456.7,1.12018]
[1758305343143,4.20725125,4456.8,4456.7,1.12018]
[1758305343439,4.00525125,4456.8,4456.7,1.12018]
[1758305343630,3.67707322,4456.8,4456.7,1.12018]
[1758305346242,0.46927322,4456.8,4456.7,1.12018]
[1758305346437,0.24227322,4456.8,4456.7,1.12018]
[1758305346639,0.24227322,4456.8,4456.7,5.34455999]
[1758305346835,0.227,4457.1,4457.0,0.93756]
[1758305347035,0.227,4457.1,4457.0,1.24476]
[1758305347244,0.46918887,4457.1,4457.0,1.24476]
[1758305347746,0.24218887,4457.1,4457.0,1.24476]
[1758305348043,3.2078,4457.4,4457.3,0.7165]
[1758305348344,3.67701192,4457.4,4457.3,1.12013]
[1758305348841,0.24221192,4457.4,4457.3,1.12013]
[1758305349737,0.24221192,4457.4,4457.3,5.12013]
[1758305350743,0.227,4457.7,4457.6,1.12011]
[1758305350941,0.46926768,4457.7,4457.6,1.12011]
[1758305351535,0.24226768,4457.7,4457.6,1.12011]
[1758305354742,0.227,4458.1,4458.0,1.24467]
[1758305355246,0.46931361,4458.1,4458.0,1.24467]
[1758305355442,0.24231361,4458.1,4458.0,1.24467]
[1758305360252,0.64491361,4458.1,4458.0,1.24467]
[1758305360444,4.00271361,4458.1,4458.0,1.04937]
[1758305360650,4.00271361,4458.1,4458.0,0.40357]
[1758305360849,4.00271361,4458.1,4458.0,0.71077]
[1758305362346,4.00271361,4458.1,4458.0,0.40357]
[1758305362543,0.4026,4457.9,4457.8,0.3296]
[1758305362743,1.02191361,4457.9,4457.8,0.73319]
[1758305363138,0.87191361,4457.9,4457.8,1.14249]
[1758305364650,1.42750805,4457.9,4457.8,1.12009]
[1758305364952,1.57750805,4457.9,4457.8,0.92479]
[1758305365256,1.57750805,4457.9,4457.8,0.71079]
[1758305365749,1.42750805,4457.9,4457.8,1.12009]
[1758305365953,1.22690805,4457.9,4457.8,1.12009]
[1758305366453,1.02490805,4457.9,4457.8,1.12009]
[1758305366953,1.22690805,4457.9,4457.8,1.12009]
[1758305369048,1.02490805,4457.9,4457.8,1.12009]
[1758305369552,1.23870805,4457.9,4457.8,1.12009]
[1758305369952,1.23666837,4457.9,4457.8,1.12009]
[1758305370455,0.46727393,4457.9,4457.8,1.12009]
[1758305370953,0.24027393,4457.9,4457.8,1.12009]
[1758305371849,0.227,4458.5,4458.4,1.11143]
[1758305373055,3.2078,4459.2,4459.1,0.4115]
[1758305373258,4.20550325,4459.2,4459.1,0.4115]
[1758305373453,4.20550325,4459.2,4459.1,0.7079]
[1758305374256,3.99170325,4459.2,4459.1,0.7079]
[1758305374753,4.20550325,4459.2,4459.1,0.7079]
[1758305375352,4.41120325,4459.2,4459.1,0.7079]
[1758305376452,3.76470325,4459.2,4459.1,0.7079]
[1758305376658,0.55690325,4459.2,4459.1,0.7079]
[1758305376858,0.227,4459.3,4459.2,0.81496]
[1758305377059,0.227,4459.3,4459.2,1.11136]
[1758305377261,3.2078,4459.7,4459.6,0.40342]
[1758305377559,4.20566461,4459.7,4459.6,1.11132]
[1758305378155,3.97866461,4459.7,4459.6,1.11132]
[1758305378357,4.20566461,4459.7,4459.6,1.11132]
[1758305378559,3.6486,4459.7,4459.6,1.11132]
[1758305380659,3.8543,4459.7,4459.6,1.11132]
[1758305381462,4.0042,4459.7,4459.6,0.90632]
[1758305382164,3.8543,4459.7,4459.6,0.90632]
[1758305382861,0.2138,4459.7,4459.6,1.11132]
[1758305383655,0.4408,4459.7,4459.6,1.11132]
[1758305383855,0.67769063,4459.7,4459.6,1.11132]
[1758305384259,0.4408,4459.7,4459.6,1.11132]
[1758305384456,0.9195,4460.1,4460.0,1.02779]
[1758305384663,1.93944562,4460.1,4460.0,1.02779]
[1758305384961,2.08934562,4460.1,4460.0,1.02779]
[1758305385160,2.08934562,4460.1,4460.0,0.69979]
[1758305385860,0.1499,4460.0,4459.5,0.1215]
[1758305386165,0.5694,4459.6,4459.0,0.1215]
[1758305386364,0.5694,4459.1,4459.0,0.1215]
[1758305386564,0.65634472,4459.1,4459.0,1.23288]
[1758305386763,0.80624472,4459.1,4459.0,0.82138]
[1758305386957,4.01404472,4459.1,4459.0,0.69988]
[1758305389467,4.01404472,4459.1,4459.0,0.82138]
[1758305389659,4.01404472,4459.1,4459.0,1.02788]
[1758305389861,3.86414472,4459.1,4459.0,1.02788]
[1758305390461,4.01404472,4459.1,4459.0,0.40348]
[1758305391062,4.01404472,4459.1,4459.0,0.69988]
[1758305393167,3.86414472,4459.1,4459.0,1.02788]
[1758305393473,4.09114472,4459.1,4459.0,1.23288]
[1758305394766,0.88334472,4459.1,4459.0,1.23288]
[1758305395264,0.65634472,4459.1,4459.0,1.23288]
[1758305395470,0.46384472,4459.1,4459.0,1.23288]
[1758305396068,0.67764472,4459.1,4459.0,1.23288]
[1758305397066,0.46384472,4459.1,4459.0,1.23288]
[1758305399272,0.23684472,4459.1,4459.0,1.23288]
[1758305399472,0.79506711,4459.1,4459.0,1.23288]
[1758305399871,1.00886711,4459.1,4459.0,1.23288]
[1758305401278,0.79506711,4459.1,4459.0,1.23288]
[1758305401578,0.23684472,4459.1,4459.0,1.23288]
[1758305401875,0.64634472,4459.1,4459.0,1.23288]
[1758305402064,1.20398379,4459.1,4459.0,1.23288]
[1758305402270,1.35408379,4459.1,4459.0,1.02788]
[1758305402574,1.35408379,4459.1,4459.0,0.40348]
[1758305403375,0.5596,4458.9,4458.8,0.0224]
[1758305403575,1.35408379,4458.9,4458.8,0.0224]
[1758305403775,1.35408379,4458.9,4458.4,0.40353]
[1758305403972,3.7674,4458.5,4458.4,0.40353]
[1758305404171,0.2006,4458.3,4458.2,0.70014]
[1758305404374,1.02344472,4458.3,4458.2,0.40354]
[1758305404574,1.58108379,4458.3,4458.2,0.70014]
[1758305404774,1.58108379,4458.3,4458.2,0.91254]
[1758305405688,1.58108379,4458.3,4458.2,0.70014]
[1758305407573,1.58108379,4458.3,4458.2,0.40354]
[1758305408385,1.58108379,4458.3,4458.0,0.0224]
[1758305408574,0.5596,4458.1,4458.0,0.0224]
[1758305408776,1.35408379,4458.1,4458.0,0.0224]
[1758305408976,1.37009494,4458.1,4458.0,0.0224]
[1758305409476,1.37009494,4458.1,4458.0,0.319]
[1758305410381,1.21999494,4458.1,4458.0,0.8714]
[1758305410579,1.23809494,4458.1,4458.0,0.8714]
[1758305410881,1.01109494,4458.1,4458.0,0.849]
[1758305411184,1.23809494,4458.1,4458.0,0.849]
[1758305411379,1.44699494,4458.1,4458.0,1.25257]
[1758305412983,1.19413907,4458.1,4458.0,1.25257]
[1758305413185,1.44680924,4458.1,4458.0,1.25257]
[1758305413783,1.21980924,4458.1,4458.0,1.25257]
[1758305413984,1.44680924,4458.1,4458.0,1.25257]
[1758305414875,1.59690924,4458.1,4457.8,0.0224]
[1758305415075,3.7674,4457.9,4457.8,0.42599]
[1758305415279,4.57770924,4457.9,4457.8,0.42599]
[1758305415481,4.57770924,4457.9,4457.8,0.72259]
[1758305415680,4.5765222,4457.9,4457.8,0.72259]
[1758305416382,4.5765222,4457.9,4457.8,0.93499]
[1758305416575,4.5765222,4457.9,4457.8,0.72259]
[1758305417484,4.5765222,4457.9,4457.8,0.70019]
[1758305418286,4.5765222,4457.9,4457.8,0.2966]
[1758305418989,4.8035222,4457.9,4457.8,0.2966]
[1758305419287,4.8035222,4457.9,4457.8,0.70019]
[1758305420581,4.8035222,4457.9,4457.8,0.2966]
[1758305420885,0.5596,4457.7,4457.6,0.319]
[1758305421088,1.5957222,4457.7,4457.6,0.319]
[1758305423387,1.5957222,4457.7,4457.6,0.2966]
[1758305423887,1.5957222,4457.7,4457.6,0.7002]
[1758305424288,1.5957222,4457.7,4457.6,0.2966]
[1758305424482,1.5957222,4457.7,4457.6,0.7002]
[1758305425388,1.5957222,4457.7,4457.6,0.2966]
[1758305425888,1.5957222,4457.7,4457.6,0.7002]
[1758305426089,1.5957222,4457.7,4457.6,0.2966]
[1758305426384,1.5957222,4457.7,4457.5,0.2966]
[1758305426580,1.3687222,4457.6,4457.5,0.2966]
[1758305427191,0.81227017,4457.6,4457.5,0.2966]
[1758305427392,1.36851029,4457.6,4457.5,0.2966]
[1758305428488,1.36851029,4457.6,4457.4,0.0224]
[1758305428686,1.58691029,4457.5,4457.4,0.0224]
[1758305429590,1.58691029,4457.5,4457.0,0.4178]
[1758305429790,3.6089,4457.1,4457.0,1.23156]
[1758305429985,4.08857017,4457.1,4457.0,1.23156]
[1758305433591,3.89377017,4457.1,4457.0,1.23156]
[1758305436097,4.4506799,4457.1,4457.0,1.23156]
[1758305437203,4.7953799,4457.1,4457.0,1.23156]
[1758305437391,4.6454799,4457.1,4457.0,1.23156]
[1758305440098,4.7953799,4457.1,4457.0,1.23156]
[1758305440399,4.7953799,4457.1,4457.0,0.40366]
[1758305440600,4.7953799,4457.1,4457.0,0.69606]
[1758305441897,4.7953799,4457.1,4456.8,0.0224]
[1758305441898,0.2063,4456.9,4456.8,0.0224]
[1758305442094,1.33490973,4456.9,4456.8,0.0224]
[1758305442299,0.551,4456.1,4456.0,0.1254]
[1758305442502,1.5875799,4456.1,4456.0,0.6237]
[1758305442802,1.5875799,4456.1,4456.0,1.02744]
[1758305443207,1.5875799,4456.1,4456.0,0.2924]
[1758305443501,1.5875799,4456.1,4456.0,0.69615]
[1758305443690,1.5875799,4456.1,4456.0,1.02725]
[1758305443890,1.4376799,4456.1,4456.0,1.02725]
[1758305445296,1.5875799,4456.1,4456.0,1.02725]
[1758305446698,1.5875799,4456.1,4456.0,1.23145]
[1758305447501,1.5875799,4456.1,4456.0,1.02725]
[1758305451207,1.5875799,4456.1,4456.0,0.2924]
[1758305452098,1.5875799,4456.1,4456.0,0.4176]
[1758305452604,1.5875799,4456.1,4456.0,0.2924]
[1758305452905,1.5875799,4456.1,4455.8,0.0224]
[1758305452906,0.551,4456.0,4455.9,0.2924]
[1758305453209,1.3605799,4456.0,4455.9,0.2924]
[1758305454007,1.3605799,4456.0,4455.9,0.90206]
[1758305454204,1.3605799,4456.0,4455.9,0.4983]
[1758305454711,1.3605799,4456.0,4455.9,0.90206]
[1758305455206,1.2106799,4456.0,4455.9,0.90206]
[1758305456304,1.2428799,4456.0,4455.9,1.10626]
[1758305456699,1.4376799,4456.0,4455.9,1.10626]
[1758305457009,0.8095799,4456.0,4455.9,1.10626]
[1758305457206,1.0365799,4456.0,4455.9,1.10626]
[1758305457398,1.2428799,4456.0,4455.9,1.10626]
[1758305458311,0.8095799,4456.0,4455.9,1.10626]
[1758305458507,1.0365799,4456.0,4455.9,1.10626]
[1758305459511,0.47967017,4456.0,4455.9,1.10626]
[1758305460010,0.25267017,4456.0,4455.9,1.10626]
[1758305460213,3.2078,4456.3,4456.2,0.89893]
[1758305460409,4.46478811,4456.3,4456.2,1.11103]
[1758305460713,4.46478811,4456.3,4456.0,0.1206]
[1758305460714,4.80778811,4456.3,4456.0,0.4191]
[1758305461013,4.80778811,4456.3,4455.1,1.00957]
[1758305461014,0.4097,4454.6,4452.4,3.2078]
[1758305461212,3.2078,4452.8,4452.5,0.1206]
[1758305461403,37.22830145,4452.7,4452.0,0.1206]
[1758305461607,0.82030145,4452.6,4452.1,1e-08]
[1758305461803,3.2078,4452.2,4451.5,0.1206]
[1758305462006,3.2078,4451.6,4451.5,0.5294]
[1758305462211,3.69977611,4451.6,4451.5,0.93356]
[1758305462411,3.69977611,4451.6,4451.5,0.5294]
[1758305463514,4.3021316,4451.6,4451.5,0.5294]
[1758305464108,3.69977611,4451.6,4451.5,0.5294]
[1758305464304,3.69977611,4451.6,4451.5,0.3327]
[1758305464510,4.30125742,4451.6,4451.5,0.3327]
[1758305464709,3.46677611,4451.6,4451.5,0.3327]
[1758305464913,3.46677611,4451.6,4451.5,0.5294]
[1758305465112,3.2078,4451.6,4451.5,0.5294]
[1758305465318,3.69760138,4451.6,4451.5,0.3327]
[1758305465515,3.69760138,4451.6,4451.5,0.73686]
[1758305465815,3.69760138,4451.6,4451.5,0.93356]
[1758305469420,3.69760138,4451.6,4451.5,0.5294]
[1758305469613,8.29717413,4451.6,4451.5,0.1206]
[1758305471322,8.52181413,4451.6,4451.0,0.1206]
[1758305471509,3.2078,4451.1,4451.0,0.1206]